[Event "FIDE Women's Grand Swiss 2023"]
[Site "Villa Marina, Douglas, Isle of Man, Isle Of Man"]
[Date "2023.10.28"]
[Round "4.15"]
[White "Ushenina, Anna"]
[Black "Hoang, Thanh Trang"]
[Result "1/2-1/2"]
[TimeControl "40/90 + 30 + 30s/move"]
[WhiteFideId "14110911"]
[BlackFideId "12400149"]
[WhiteElo "2434"]
[BlackElo "2398"]

1. d4 {[%clk 01:30:49]} {[%emt 00:00:10]} d5 {[%clk 01:30:37]} {[%emt
00:00:23]} 2. c4 {[%clk 01:30:13]} {[%emt 00:01:06]} e6 {[%clk 01:30:47]}
{[%emt 00:00:19]} 3. Nf3 {[%clk 01:24:46]} {[%emt 00:05:58]} a6 {[%clk
01:30:21]} {[%emt 00:00:56]} 4. Bg5 {[%clk 01:24:22]} {[%emt 00:00:54]} Be7
{[%clk 01:29:08]} {[%emt 00:01:42]} 5. Bxe7 {[%clk 01:24:48]} {[%emt 00:00:04]}
Qxe7 {[%clk 01:29:28]} {[%emt 00:00:09]} 6. Nbd2 {[%clk 01:24:37]} {[%emt
00:00:42]} Nf6 {[%clk 01:29:01]} {[%emt 00:00:56]} 7. g3 {[%clk 01:23:03]}
{[%emt 00:02:05]} O-O {[%clk 01:23:52]} {[%emt 00:05:38]} 8. Bg2 {[%clk
01:22:54]} {[%emt 00:00:40]} b6 {[%clk 01:20:51]} {[%emt 00:03:30]} 9. O-O
{[%clk 01:17:29]} {[%emt 00:05:56]} Bb7 {[%clk 01:19:50]} {[%emt 00:01:31]} 10.
Rc1 {[%clk 01:17:04]} {[%emt 00:00:55]} c5 {[%clk 01:16:04]} {[%emt 00:04:16]}
11. cxd5 {[%clk 00:56:29]} {[%emt 00:21:05]} exd5 {[%clk 01:15:34]} {[%emt
00:00:59]} 12. Qb3 {[%clk 00:46:43]} {[%emt 00:10:18]} Qc7 {[%clk 01:03:49]}
{[%emt 00:12:14]} 13. dxc5 {[%clk 00:39:43]} {[%emt 00:07:31]} bxc5 {[%clk
01:03:48]} {[%emt 00:00:31]} 14. Qa3 {[%clk 00:39:19]} {[%emt 00:00:55]} Nbd7
{[%clk 01:01:10]} {[%emt 00:03:07]} 15. Nb3 {[%clk 00:36:44]} {[%emt 00:03:06]}
c4 {[%clk 00:55:04]} {[%emt 00:06:35]} 16. Nbd4 {[%clk 00:35:19]} {[%emt
00:01:55]} Qb6 {[%clk 00:46:10]} {[%emt 00:09:24]} 17. b3 {[%clk 00:25:31]}
{[%emt 00:10:19]} Rac8 {[%clk 00:42:58]} {[%emt 00:03:41]} 18. Nf5 {[%clk
00:25:13]} {[%emt 00:00:49]} Rc7 {[%clk 00:41:04]} {[%emt 00:02:24]} 19. bxc4
{[%clk 00:19:57]} {[%emt 00:05:46]} dxc4 {[%clk 00:39:36]} {[%emt 00:01:57]} 20.
Rfd1 {[%clk 00:19:19]} {[%emt 00:01:08]} Qc5 {[%clk 00:33:53]} {[%emt
00:06:14]} 21. Qxc5 {[%clk 00:16:21]} {[%emt 00:03:28]} Rxc5 {[%clk 00:34:09]}
{[%emt 00:00:13]} 22. Nd6 {[%clk 00:13:56]} {[%emt 00:02:57]} Bxf3 {[%clk
00:34:14]} {[%emt 00:00:25]} 23. Bxf3 {[%clk 00:13:46]} {[%emt 00:00:40]} Ne5
{[%clk 00:30:38]} {[%emt 00:04:05]} 24. Bb7 {[%clk 00:13:52]} {[%emt 00:00:24]}
c3 {[%clk 00:27:56]} {[%emt 00:03:11]} 25. f4 {[%clk 00:11:55]} {[%emt
00:02:28]} Nc6 {[%clk 00:18:50]} {[%emt 00:09:35]} 26. Rd3 {[%clk 00:11:45]}
{[%emt 00:00:40]} c2 {[%clk 00:13:12]} {[%emt 00:06:09]} 27. Rd2 {[%clk
00:12:00]} {[%emt 00:00:15]} Rd8 {[%clk 00:12:47]} {[%emt 00:00:54]} 28. Rdxc2
{[%clk 00:10:38]} {[%emt 00:01:52]} Rxc2 {[%clk 00:13:03]} {[%emt 00:00:15]} 29.
Rxc2 {[%clk 00:11:07]} {[%emt 00:00:01]} Nd4 {[%clk 00:12:18]} {[%emt
00:01:15]} 30. Rc7 {[%clk 00:01:57]} {[%emt 00:09:40]} h6 {[%clk 00:10:27]}
{[%emt 00:02:20]} 31. Nxf7 {[%clk 00:01:49]} {[%emt 00:00:39]} Nxe2+ {[%clk
00:10:14]} {[%emt 00:00:43]} 32. Kf1 {[%clk 00:01:39]} {[%emt 00:00:40]} Rd2
{[%clk 00:09:59]} {[%emt 00:00:44]} 33. Bxa6 {[%clk 00:01:21]} {[%emt
00:00:50]} Nd4 {[%clk 00:09:28]} {[%emt 00:01:00]} 34. Ne5 {[%clk 00:01:42]}
{[%emt 00:00:09]} Kf8 {[%clk 00:06:41]} {[%emt 00:03:16]} 35. Bb7 {[%clk
00:01:24]} {[%emt 00:00:49]} Rxa2 {[%clk 00:05:49]} {[%emt 00:01:21]} 36. Rc8+
{[%clk 00:00:56]} {[%emt 00:00:59]} Ke7 {[%clk 00:05:48]} {[%emt 00:00:30]} 37.
Nc6+ {[%clk 00:00:57]} {[%emt 00:00:29]} Nxc6 {[%clk 00:05:57]} {[%emt
00:00:21]} 38. Rxc6 {[%clk 00:01:19]} {[%emt 00:00:10]} Rxh2 {[%clk 00:04:49]}
{[%emt 00:01:38]} 39. Rc7+ {[%clk 00:01:45]} {[%emt 00:00:05]} Kf8 {[%clk
00:04:31]} {[%emt 00:00:47]} 40. Bg2 {[%clk 00:01:50]} {[%emt 00:00:26]} Rh5
{[%clk 00:04:16]} {[%emt 00:00:44]} 41. Rc8+ {[%clk 00:01:37]} {[%emt
00:00:43]} Kf7 {[%clk 00:04:18]} {[%emt 00:00:27]} 42. Rc7+ {[%clk 00:01:47]}
{[%emt 00:00:22]} Kf8 {[%clk 00:04:30]} {[%emt 00:00:18]} 43. Rc8+ {[%clk
00:02:14]} {[%emt 00:00:03]} Kf7 {[%clk 00:04:53]} {[%emt 00:00:06]} 44. Rc7+
{[%clk 00:02:42]} {[%emt 00:00:03]} 1/2-1/2

[Event "FIDE Women's Grand Swiss 2023"]
[Site "Villa Marina, Douglas, Isle of Man, Isle Of Man"]
[Date "2023.10.28"]
[Round "4.16"]
[White "Beydullayeva, Govhar"]
[Black "Cramling, Pia"]
[Result "1-0"]
[TimeControl "40/90 + 30 + 30s/move"]
[WhiteFideId "13413015"]
[BlackFideId "1700030"]
[WhiteElo "2383"]
[BlackElo "2446"]

1. d4 {[%clk 01:30:58]} {[%emt 00:00:01]} Nf6 {[%clk 01:30:52]} {[%emt
00:00:08]} 2. c4 {[%clk 01:31:22]} {[%emt 00:00:06]} e6 {[%clk 01:31:11]}
{[%emt 00:00:11]} 3. Nf3 {[%clk 01:31:45]} {[%emt 00:00:07]} Bb4+ {[%clk
01:31:26]} {[%emt 00:00:14]} 4. Nbd2 {[%clk 01:27:24]} {[%emt 00:04:51]} b6
{[%clk 01:31:45]} {[%emt 00:00:11]} 5. a3 {[%clk 01:27:15]} {[%emt 00:00:40]}
Bxd2+ {[%clk 01:31:59]} {[%emt 00:00:15]} 6. Qxd2 {[%clk 01:27:34]} {[%emt
00:00:12]} O-O {[%clk 01:32:10]} {[%emt 00:00:18]} 7. e3 {[%clk 01:24:55]}
{[%emt 00:03:09]} d5 {[%clk 01:32:13]} {[%emt 00:00:26]} 8. Bd3 {[%clk
01:23:44]} {[%emt 00:01:43]} dxc4 {[%clk 01:27:51]} {[%emt 00:04:52]} 9. Bxc4
{[%clk 01:24:11]} {[%emt 00:00:04]} Bb7 {[%clk 01:28:04]} {[%emt 00:00:15]} 10.
O-O {[%clk 01:22:38]} {[%emt 00:02:04]} Nbd7 {[%clk 01:26:01]} {[%emt
00:02:32]} 11. b4 {[%clk 01:17:59]} {[%emt 00:05:09]} c5 {[%clk 01:25:52]}
{[%emt 00:00:39]} 12. Bb2 {[%clk 01:15:24]} {[%emt 00:03:06]} Qe7 {[%clk
01:15:53]} {[%emt 00:10:27]} 13. Qe2 {[%clk 01:09:02]} {[%emt 00:06:54]} Rac8
{[%clk 01:12:02]} {[%emt 00:04:20]} 14. Rfc1 {[%clk 01:07:20]} {[%emt
00:02:13]} Rfd8 {[%clk 01:11:26]} {[%emt 00:01:05]} 15. Ba6 {[%clk 00:57:20]}
{[%emt 00:10:31]} Bxa6 {[%clk 01:10:01]} {[%emt 00:01:54]} 16. Qxa6 {[%clk
00:53:33]} {[%emt 00:04:18]} Nb8 {[%clk 01:10:01]} {[%emt 00:00:29]} 17. Qc4
{[%clk 00:52:51]} {[%emt 00:01:13]} Nbd7 {[%clk 01:10:02]} {[%emt 00:00:29]} 18.
Qa6 {[%clk 00:52:48]} {[%emt 00:00:33]} Nb8 {[%clk 01:10:18]} {[%emt 00:00:13]}
19. Qc4 {[%clk 00:42:32]} {[%emt 00:10:47]} Nbd7 {[%clk 01:07:36]} {[%emt
00:03:11]} 20. dxc5 {[%clk 00:41:45]} {[%emt 00:01:17]} bxc5 {[%clk 01:07:48]}
{[%emt 00:00:18]} 21. Qa6 {[%clk 00:41:18]} {[%emt 00:00:58]} Nb8 {[%clk
00:58:13]} {[%emt 00:10:03]} 22. Qc4 {[%clk 00:40:12]} {[%emt 00:01:38]} Nbd7
{[%clk 00:58:16]} {[%emt 00:00:26]} 23. b5 {[%clk 00:37:01]} {[%emt 00:03:41]}
Nd5 {[%clk 00:42:18]} {[%emt 00:16:27]} 24. a4 {[%clk 00:36:02]} {[%emt
00:01:32]} Nb4 {[%clk 00:29:17]} {[%emt 00:13:30]} 25. a5 {[%clk 00:34:51]}
{[%emt 00:01:41]} e5 {[%clk 00:21:17]} {[%emt 00:08:30]} 26. e4 {[%clk
00:32:33]} {[%emt 00:02:48]} h6 {[%clk 00:12:12]} {[%emt 00:09:34]} 27. Bc3
{[%clk 00:28:39]} {[%emt 00:04:25]} Qf8 {[%clk 00:10:37]} {[%emt 00:02:04]} 28.
h3 {[%clk 00:26:21]} {[%emt 00:02:49]} Kh7 {[%clk 00:10:28]} {[%emt 00:00:38]}
29. Rab1 {[%clk 00:25:01]} {[%emt 00:01:51]} f6 {[%clk 00:09:48]} {[%emt
00:01:10]} 30. Ne1 {[%clk 00:21:48]} {[%emt 00:03:43]} Nb8 {[%clk 00:09:41]}
{[%emt 00:00:37]} 31. Rd1 {[%clk 00:19:11]} {[%emt 00:03:07]} Rxd1 {[%clk
00:08:54]} {[%emt 00:01:17]} 32. Rxd1 {[%clk 00:19:41]} a6 {[%clk 00:09:03]}
{[%emt 00:00:21]} 33. b6 {[%clk 00:17:36]} {[%emt 00:02:35]} N4c6 {[%clk
00:09:22]} {[%emt 00:00:11]} 34. Rc1 {[%clk 00:15:45]} {[%emt 00:02:22]} Qd6
{[%clk 00:06:30]} {[%emt 00:03:20]} 35. Nd3 {[%clk 00:15:14]} {[%emt 00:01:02]}
Nd8 {[%clk 00:06:48]} {[%emt 00:00:11]} 36. f4 {[%clk 00:09:01]} {[%emt
00:06:44]} exf4 {[%clk 00:02:18]} {[%emt 00:04:59]} 37. e5 {[%clk 00:09:26]}
{[%emt 00:00:06]} fxe5 {[%clk 00:02:25]} {[%emt 00:00:22]} 38. Bxe5 {[%clk
00:09:28]} {[%emt 00:00:29]} Qe7 {[%clk 00:00:43]} {[%emt 00:02:11]} 39. Qxf4
{[%clk 00:07:49]} {[%emt 00:02:10]} Ne6 {[%clk 00:00:34]} {[%emt 00:00:39]} 40.
Qe4+ {[%clk 00:06:33]} {[%emt 00:01:46]} Kh8 {[%clk 00:00:41]} {[%emt
00:00:22]} 41. Bxb8 {[%clk 00:00:54]} {[%emt 00:06:10]} Rxb8 {[%clk 00:00:47]}
{[%emt 00:00:23]} 42. Ne5 {[%clk 00:24:39]} {[%emt 00:06:46]} Nf8 {[%clk
00:27:36]} {[%emt 00:03:40]} 43. Rf1 {[%clk 00:22:46]} {[%emt 00:02:24]} Kg8
{[%clk 00:26:38]} {[%emt 00:01:27]} 44. Qd5+ {[%clk 00:22:08]} {[%emt
00:01:09]} Kh7 {[%clk 00:26:58]} {[%emt 00:00:07]} 45. Qd3+ {[%clk 00:22:32]}
{[%emt 00:00:09]} 1-0

[Event "FIDE Women's Grand Swiss 2023"]
[Site "Villa Marina, Douglas, Isle of Man, Isle Of Man"]
[Date "2023.10.28"]
[Round "4.17"]
[White "Wagner, Dinara"]
[Black "Mkrtchyan, Mariam"]
[Result "1/2-1/2"]
[TimeControl "40/90 + 30 + 30s/move"]
[WhiteFideId "24157570"]
[BlackFideId "13310828"]
[WhiteElo "2461"]
[BlackElo "2343"]

1. d4 {[%clk 01:30:56]} {[%emt 00:00:03]} d5 {[%clk 01:30:54]} {[%emt
00:00:07]} 2. c4 {[%clk 01:31:19]} {[%emt 00:00:07]} e6 {[%clk 01:31:19]}
{[%emt 00:00:05]} 3. Nf3 {[%clk 01:31:27]} {[%emt 00:00:22]} Nf6 {[%clk
01:31:43]} {[%emt 00:00:07]} 4. Nc3 {[%clk 01:31:52]} {[%emt 00:00:04]} Nbd7
{[%clk 01:27:58]} {[%emt 00:04:15]} 5. cxd5 {[%clk 01:31:44]} {[%emt 00:00:38]}
exd5 {[%clk 01:28:11]} {[%emt 00:00:17]} 6. Qc2 {[%clk 01:32:06]} {[%emt
00:00:07]} c6 {[%clk 01:26:36]} {[%emt 00:02:06]} 7. Bg5 {[%clk 01:32:28]}
{[%emt 00:00:08]} Be7 {[%clk 01:24:35]} {[%emt 00:02:31]} 8. e3 {[%clk
01:31:34]} {[%emt 00:01:24]} O-O {[%clk 01:23:41]} {[%emt 00:01:24]} 9. Bd3
{[%clk 01:31:55]} {[%emt 00:00:09]} Re8 {[%clk 01:23:17]} {[%emt 00:00:53]} 10.
O-O {[%clk 01:32:03]} {[%emt 00:00:23]} h6 {[%clk 01:23:04]} {[%emt 00:00:43]}
11. Bf4 {[%clk 01:32:23]} {[%emt 00:00:10]} Nf8 {[%clk 01:20:52]} {[%emt
00:02:42]} 12. h3 {[%clk 01:32:13]} {[%emt 00:00:40]} Ne6 {[%clk 01:19:31]}
{[%emt 00:01:51]} 13. Bh2 {[%clk 01:32:03]} {[%emt 00:00:40]} Bd6 {[%clk
01:16:56]} {[%emt 00:03:05]} 14. Be5 {[%clk 01:19:06]} {[%emt 00:13:26]} Ng5
{[%clk 01:07:22]} {[%emt 00:10:05]} 15. Nxg5 {[%clk 01:14:12]} {[%emt
00:05:24]} hxg5 {[%clk 01:07:47]} {[%emt 00:00:05]} 16. f4 {[%clk 00:55:01]}
{[%emt 00:19:41]} g4 {[%clk 01:07:14]} {[%emt 00:01:03]} 17. hxg4 {[%clk
00:53:57]} {[%emt 00:01:34]} Nxg4 {[%clk 01:06:20]} {[%emt 00:01:24]} 18. Rf3
{[%clk 00:54:14]} {[%emt 00:00:13]} f6 {[%clk 00:57:28]} {[%emt 00:09:21]} 19.
Bh7+ {[%clk 00:44:18]} {[%emt 00:10:27]} Kh8 {[%clk 00:56:03]} {[%emt
00:01:55]} 20. Bxd6 {[%clk 00:44:13]} {[%emt 00:00:35]} Qxd6 {[%clk 00:56:04]}
{[%emt 00:00:29]} 21. Re1 {[%clk 00:43:09]} {[%emt 00:01:34]} Bd7 {[%clk
00:53:51]} {[%emt 00:02:43]} 22. Bg6 {[%clk 00:27:55]} {[%emt 00:15:43]} Re7
{[%clk 00:52:33]} {[%emt 00:01:48]} 23. Rh3+ {[%clk 00:28:12]} {[%emt
00:00:14]} Nh6 {[%clk 00:46:17]} {[%emt 00:06:45]} 24. f5 {[%clk 00:28:32]}
{[%emt 00:00:11]} Be8 {[%clk 00:43:40]} {[%emt 00:03:08]} 25. Bxe8 {[%clk
00:18:31]} {[%emt 00:10:31]} Raxe8 {[%clk 00:43:38]} {[%emt 00:00:31]} 26. Qf2
{[%clk 00:13:52]} {[%emt 00:05:09]} Kg8 {[%clk 00:42:20]} {[%emt 00:01:47]} 27.
Qf3 {[%clk 00:14:18]} {[%emt 00:00:04]} b5 {[%clk 00:33:54]} {[%emt 00:08:56]}
28. Re2 {[%clk 00:12:52]} {[%emt 00:01:57]} Qd7 {[%clk 00:30:54]} {[%emt
00:03:30]} 29. Rh5 {[%clk 00:09:45]} {[%emt 00:03:37]} Qd6 {[%clk 00:28:03]}
{[%emt 00:03:22]} 30. Rh3 {[%clk 00:05:56]} {[%emt 00:04:18]} Qd7 {[%clk
00:27:03]} {[%emt 00:01:31]} 31. Rh5 {[%clk 00:06:20]} {[%emt 00:00:05]} Qd6
{[%clk 00:26:48]} {[%emt 00:00:45]} 1/2-1/2

[Event "FIDE Women's Grand Swiss 2023"]
[Site "Villa Marina, Douglas, Isle of Man, Isle Of Man"]
[Date "2023.10.28"]
[Round "4.18"]
[White "Danielian, Elina"]
[Black "Socko, Monika"]
[Result "0-1"]
[TimeControl "40/90 + 30 + 30s/move"]
[WhiteFideId "13300210"]
[BlackFideId "1106619"]
[WhiteElo "2416"]
[BlackElo "2380"]

1. d4 {[%clk 01:30:56]} {[%emt 00:00:03]} Nf6 {[%clk 01:30:54]} {[%emt
00:00:06]} 2. c4 {[%clk 01:31:21]} {[%emt 00:00:06]} e6 {[%clk 01:31:19]}
{[%emt 00:00:04]} 3. Nc3 {[%clk 01:31:47]} {[%emt 00:00:04]} Bb4 {[%clk
01:31:42]} {[%emt 00:00:06]} 4. e3 {[%clk 01:32:04]} {[%emt 00:00:14]} O-O
{[%clk 01:31:05]} {[%emt 00:01:07]} 5. Bd2 {[%clk 01:32:15]} {[%emt 00:00:19]}
d5 {[%clk 01:29:20]} {[%emt 00:02:14]} 6. Nf3 {[%clk 01:32:06]} {[%emt
00:00:40]} Nbd7 {[%clk 01:26:35]} {[%emt 00:03:16]} 7. Rc1 {[%clk 01:31:54]}
{[%emt 00:00:41]} c6 {[%clk 01:23:30]} {[%emt 00:03:36]} 8. Bd3 {[%clk
01:30:58]} {[%emt 00:01:26]} dxc4 {[%clk 01:20:39]} {[%emt 00:03:20]} 9. Bxc4
{[%clk 01:31:23]} {[%emt 00:00:05]} Qe7 {[%clk 01:21:02]} {[%emt 00:00:07]} 10.
O-O {[%clk 01:18:07]} {[%emt 00:13:45]} e5 {[%clk 01:19:44]} {[%emt 00:01:48]}
11. Qc2 {[%clk 01:15:56]} {[%emt 00:02:41]} Bd6 {[%clk 01:08:08]} {[%emt
00:12:06]} 12. Bd3 {[%clk 01:02:38]} {[%emt 00:13:48]} Re8 {[%clk 01:04:47]}
{[%emt 00:03:52]} 13. dxe5 {[%clk 00:48:55]} {[%emt 00:14:14]} Nxe5 {[%clk
01:04:52]} {[%emt 00:00:24]} 14. Nxe5 {[%clk 00:49:21]} {[%emt 00:00:04]} Qxe5
{[%clk 01:03:38]} {[%emt 00:01:44]} 15. f4 {[%clk 00:49:46]} {[%emt 00:00:04]}
Qh5 {[%clk 01:01:51]} {[%emt 00:02:17]} 16. h3 {[%clk 00:46:30]} {[%emt
00:03:47]} Bd7 {[%clk 00:51:27]} {[%emt 00:10:54]} 17. Rf3 {[%clk 00:38:58]}
{[%emt 00:08:02]} Rad8 {[%clk 00:45:34]} {[%emt 00:06:24]} 18. a3 {[%clk
00:26:04]} {[%emt 00:13:24]} Bc7 {[%clk 00:41:28]} {[%emt 00:04:35]} 19. b4
{[%clk 00:19:01]} {[%emt 00:07:33]} Bc8 {[%clk 00:37:19]} {[%emt 00:04:39]} 20.
Be1 {[%clk 00:12:36]} {[%emt 00:06:55]} Be6 {[%clk 00:26:40]} {[%emt 00:11:09]}
21. e4 {[%clk 00:11:06]} {[%emt 00:02:00]} Qh6 {[%clk 00:24:39]} {[%emt
00:02:31]} 22. e5 {[%clk 00:09:45]} {[%emt 00:01:50]} Bb6+ {[%clk 00:21:37]}
{[%emt 00:03:33]} 23. Bf2 {[%clk 00:08:33]} {[%emt 00:01:41]} Bd5 {[%clk
00:16:22]} {[%emt 00:05:46]} 24. Bxb6 {[%clk 00:05:13]} {[%emt 00:03:50]} axb6
{[%clk 00:16:50]} {[%emt 00:00:02]} 25. Nxd5 {[%clk 00:03:48]} {[%emt
00:01:55]} Nxd5 {[%clk 00:17:17]} {[%emt 00:00:03]} 26. Rcf1 {[%clk 00:01:08]}
{[%emt 00:03:09]} b5 {[%emt 00:04:23]} 27. Qc5 {[%clk 00:00:36]} Qe6 {[%clk
00:12:24]} {[%emt 00:02:33]} 28. Bb1 {[%clk 00:00:48]} {[%emt 00:00:19]} g6
{[%clk 00:09:45]} {[%emt 00:03:08]} 29. h4 {[%clk 00:00:52]} {[%emt 00:00:26]}
Qg4 {[%clk 00:08:02]} {[%emt 00:02:13]} 30. Qf2 {[%clk 00:00:54]} {[%emt
00:00:28]} Ne7 {[%clk 00:07:16]} {[%emt 00:01:17]} 31. f5 {[%clk 00:00:55]}
{[%emt 00:00:29]} Qd4 {[%clk 00:06:31]} {[%emt 00:01:14]} 32. Qxd4 {[%clk
00:00:47]} {[%emt 00:00:38]} Rxd4 {[%clk 00:07:00]} 33. fxg6 {[%clk 00:01:02]}
{[%emt 00:00:15]} Nxg6 {[%clk 00:06:42]} {[%emt 00:00:47]} 34. Rxf7 {[%clk
00:01:18]} {[%emt 00:00:15]} Rxe5 {[%clk 00:03:15]} {[%emt 00:03:57]} 35. Rxb7
{[%clk 00:01:24]} {[%emt 00:00:24]} Rxh4 {[%clk 00:03:27]} {[%emt 00:00:18]} 36.
Ba2+ {[%clk 00:01:34]} {[%emt 00:00:20]} Kh8 {[%clk 00:03:56]} 37. Rd1 {[%clk
00:00:50]} {[%emt 00:01:13]} Re8 {[%clk 00:02:32]} {[%emt 00:01:55]} 38. Rc7
{[%clk 00:00:54]} {[%emt 00:00:27]} Nf4 {[%clk 00:02:29]} {[%emt 00:00:33]} 39.
Bb1 {[%clk 00:00:37]} {[%emt 00:00:47]} Ne2+ {[%clk 00:02:02]} {[%emt
00:00:57]} 40. Kf2 {[%clk 00:01:05]} {[%emt 00:00:02]} Rf4+ {[%clk 00:02:11]}
{[%emt 00:00:20]} 41. Ke1 {[%clk 00:01:29]} {[%emt 00:00:06]} Nc3+ {[%clk
00:27:40]} {[%emt 00:05:01]} 42. Kd2 {[%clk 00:31:56]} {[%emt 00:00:03]} Nxd1
{[%clk 00:27:55]} {[%emt 00:00:15]} 43. Kxd1 {[%clk 00:32:13]} {[%emt
00:00:13]} Rf1+ {[%clk 00:26:33]} {[%emt 00:01:52]} 44. Kc2 {[%clk 00:32:40]}
{[%emt 00:00:03]} Ree1 {[%clk 00:25:58]} {[%emt 00:01:05]} 0-1

[Event "FIDE Women's Grand Swiss 2023"]
[Site "Villa Marina, Douglas, Isle of Man, Isle Of Man"]
[Date "2023.10.28"]
[Round "4.19"]
[White "Kiolbasa, Oliwia"]
[Black "Divya, Deshmukh"]
[Result "1/2-1/2"]
[TimeControl "40/90 + 30 + 30s/move"]
[WhiteFideId "1154613"]
[BlackFideId "35006916"]
[WhiteElo "2375"]
[BlackElo "2408"]

1. e4 {[%clk 01:30:57]} {[%emt 00:00:03]} e5 {[%clk 01:30:58]} {[%emt
00:00:03]} 2. Nf3 {[%clk 01:31:15]} {[%emt 00:00:11]} Nc6 {[%clk 01:31:25]}
{[%emt 00:00:03]} 3. Bc4 {[%clk 01:28:28]} {[%emt 00:03:18]} Bc5 {[%clk
01:31:50]} {[%emt 00:00:05]} 4. d3 {[%clk 01:28:46]} {[%emt 00:00:12]} Nf6
{[%clk 01:32:10]} {[%emt 00:00:09]} 5. Nc3 {[%clk 01:28:50]} {[%emt 00:00:26]}
h6 {[%clk 01:32:33]} {[%emt 00:00:08]} 6. Be3 {[%clk 01:28:47]} {[%emt
00:00:32]} Bb6 {[%clk 01:32:35]} {[%emt 00:00:29]} 7. a4 {[%clk 01:28:00]}
{[%emt 00:01:17]} d6 {[%clk 01:32:56]} {[%emt 00:00:09]} 8. O-O {[%clk
01:28:01]} {[%emt 00:00:28]} O-O {[%clk 01:32:50]} {[%emt 00:00:38]} 9. h3
{[%clk 01:27:54]} {[%emt 00:00:35]} Be6 {[%clk 01:33:05]} {[%emt 00:00:15]} 10.
Nd2 {[%clk 01:28:12]} {[%emt 00:00:13]} Ne7 {[%clk 01:21:42]} {[%emt 00:11:52]}
11. a5 {[%clk 01:21:03]} {[%emt 00:07:40]} Bxe3 {[%clk 01:20:18]} {[%emt
00:01:54]} 12. fxe3 {[%clk 01:20:30]} {[%emt 00:01:03]} c6 {[%clk 01:14:58]}
{[%emt 00:05:51]} 13. Bxe6 {[%clk 01:11:24]} {[%emt 00:09:35]} fxe6 {[%clk
01:14:40]} {[%emt 00:00:48]} 14. d4 {[%clk 01:10:41]} {[%emt 00:01:12]} Ng6
{[%clk 01:12:48]} {[%emt 00:02:22]} 15. Nc4 {[%clk 01:06:55]} {[%emt 00:04:16]}
exd4 {[%clk 00:56:16]} {[%emt 00:17:03]} 16. exd4 {[%clk 01:06:15]} {[%emt
00:01:10]} d5 {[%clk 00:56:27]} {[%emt 00:00:19]} 17. exd5 {[%clk 01:00:38]}
{[%emt 00:06:06]} cxd5 {[%clk 00:55:57]} {[%emt 00:01:00]} 18. Ne5 {[%clk
00:44:16]} {[%emt 00:16:52]} Nxe5 {[%clk 00:54:56]} {[%emt 00:01:32]} 19. dxe5
{[%clk 00:44:37]} {[%emt 00:00:09]} Nd7 {[%clk 00:55:18]} {[%emt 00:00:08]} 20.
Rxf8+ {[%clk 00:44:14]} Qxf8 {[%clk 00:55:23]} {[%emt 00:01:18]} 21. Qd4 {[%clk
00:44:24]} {[%emt 00:00:20]} Rc8 {[%clk 00:29:52]} {[%emt 00:26:02]} 22. Nxd5
{[%clk 00:26:03]} {[%emt 00:18:50]} Qc5 {[%clk 00:24:59]} {[%emt 00:05:22]} 23.
Qxc5 {[%clk 00:26:22]} {[%emt 00:00:11]} Rxc5 {[%clk 00:25:27]} {[%emt
00:00:03]} 24. Nb4 {[%clk 00:19:53]} {[%emt 00:06:58]} Nxe5 {[%clk 00:23:30]}
{[%emt 00:02:27]} 25. a6 {[%clk 00:20:05]} {[%emt 00:00:19]} b6 {[%clk
00:21:39]} {[%emt 00:02:20]} 26. Rd1 {[%clk 00:19:04]} {[%emt 00:01:31]} Rc8
{[%clk 00:21:22]} {[%emt 00:00:47]} 27. Re1 {[%clk 00:14:23]} {[%emt 00:05:11]}
Nc6 {[%clk 00:21:22]} {[%emt 00:00:30]} 28. Nd3 {[%clk 00:14:29]} {[%emt
00:00:24]} Kf7 {[%clk 00:21:18]} {[%emt 00:00:35]} 29. Re4 {[%clk 00:14:41]}
{[%emt 00:00:18]} Nb8 {[%clk 00:19:50]} {[%emt 00:01:58]} 30. Nb4 {[%clk
00:12:08]} {[%emt 00:03:03]} Rc5 {[%clk 00:17:14]} {[%emt 00:03:06]} 31. c3
{[%clk 00:09:00]} {[%emt 00:03:37]} Ke7 {[%clk 00:07:12]} {[%emt 00:10:31]} 32.
Kf2 {[%clk 00:07:45]} {[%emt 00:01:46]} Nc6 {[%clk 00:07:25]} {[%emt 00:00:17]}
33. Nxc6+ {[%clk 00:06:52]} {[%emt 00:01:23]} Rxc6 {[%clk 00:07:54]} {[%emt
00:00:01]} 34. Rg4 {[%clk 00:07:15]} {[%emt 00:00:07]} g5 {[%clk 00:07:58]}
{[%emt 00:00:26]} 35. h4 {[%clk 00:07:12]} {[%emt 00:00:33]} Rc5 {[%clk
00:05:04]} {[%emt 00:03:24]} 36. hxg5 {[%clk 00:06:47]} {[%emt 00:00:55]} hxg5
{[%clk 00:05:14]} {[%emt 00:00:20]} 37. b4 {[%clk 00:03:50]} {[%emt 00:03:27]}
Rxc3 {[%clk 00:03:14]} {[%emt 00:02:30]} 38. Rxg5 {[%clk 00:01:52]} {[%emt
00:02:29]} Kf6 {[%clk 00:03:20]} {[%emt 00:00:24]} 39. Rh5 {[%clk 00:02:17]}
{[%emt 00:00:04]} Kg6 {[%clk 00:00:44]} {[%emt 00:03:06]} 40. Re5 {[%clk
00:02:38]} {[%emt 00:00:09]} Kf6 {[%clk 00:00:39]} {[%emt 00:00:35]} 41. Rh5
{[%clk 00:27:38]} {[%emt 00:05:30]} 1/2-1/2